{"text_format":"1","workbook":"xlsx","n_sheets":16,"sheets":["ΧΜΤΡΓ","ΚΑΘΡ","ΣΚΥΡΔ","ΤΟΙΧ","EΠΧ-επενδ","ΔΑΠ","ΚΟΥΦ","ΝΤΛ-μον","ΜΡΜκλιμΥΑΛψευδ","ΕΠΙΚΑΛ στηθ","ΧΡΜ-διαφρ","ΠΕΡΓπεριφρξ WCυδραυλ","ΘψΦΑηλ LIFTδιαφΠΡΒΛ","ΟΜΑΔΟΠΟΙΗΣΗ ΑΥΘΑΙΡΕΣΙΩΝ","ΑΝΑΛΥΤΙΚΟΣ","οδηγιες"],"not_rendered":{"charts":0,"images":0,"macros":1,"external_links":0,"defined_names":8,"comments":14,"pivot_tables":0},"unopened":[],"bounds":{"document_bytes":16777216,"sheet_cells":100000,"rows_first":2000,"rows_last":500,"rows_between":2000,"halvings":0,"cell_chars":16384,"cell_head_chars":4096},"cells_cut":0,"cells_raw":0,"read":"whole","date_system":"1900"}

{"sheet":"ΧΜΤΡΓ","index":0,"n_rows":18,"n_cols":8,"rows_kept":18,"cut":false,"hidden":false,"merged":[]}
[null,"ΕΡΓΟ ",null,"ΔΗΛΩΣΗ ν4178/13",null,null,"ΑΡ.ΣΕΛ/ΔΩΝ",13]
[null,"ΘΕΣΗ",null,"ΠΡΟΚΝΗΣ 10 ΝΕΟΣ ΚΟΣΜΟΣ",null,null,"ΣΕΛΙΔΑ ",1]
[null,"ΙΔΙΟΚΤΗΤΗΣ",null,"ΜΠΙΝΗΣ ΣΤΑΜΑΤΗΣ",null,null,"ΣΥΝΟΛΟ ΑΝΑΛΥΤΙΚΟΥ",{"$f":"'ΘψΦΑηλ LIFTδιαφΠΡΒΛ'!#REF!","v":{"$error":"#REF!"}}]
[null,"ΗΜΕΡΟΜΗΝΙΑ",null,42220,null,null,"ΠΑΡΑΒΑΣΕΙΣ=",{"$f":"1+(INT(H3/15000))","v":{"$error":"#REF!"}}]
[null,"Α/Α ΔΗΛΩΣΗΣ",null,215487,null,null,"ΣΥΝΟΛIKO ΠΡΟΣΤΙΜΟ"]
[null,"ΠΑΡΑΡΤΗΜΑ Β (ΑΝΑΛΥΤΙΚΟΙ ΠΡΟΥΠΟΛΟΓΙΣΜΟΙ Ν4178/2013)",null,null,null,null,"       €",{"$f":"H4*500","v":{"$error":"#REF!"}}]
[null,"α/α","Είδος Εργασίας","Μονάδα Μέτρησης","Τιμή Μονάδος  €   ",null,"ποσότητα","Σύνολο    €"]
[null,1,"ΧΩΜΑΤΟΥΡΓΙΚΑ"]
["ΧΩΜΑΤΟΥΡΓΙΚΑ","1,01","Γενικές εκσκαφές γαιώδεις","κ. μ.",3.22,0,{"$f":"+EVAL(F9)","v":{"$error":"#NAME?"}},{"$f":"G9*E9","v":{"$error":"#NAME?"}}]
["ΧΩΜΑΤΟΥΡΓΙΚΑ","1,02","Γενικές εκσκαφές ημιβραχώδεις","κ.μ.",3.22,0,{"$error":"#NAME?"},{"$error":"#NAME?"}]
["ΧΩΜΑΤΟΥΡΓΙΚΑ","1,03","Γενικές εκσκαφές βραχώδεις","κ.μ.",11.74,0,{"$error":"#NAME?"},{"$error":"#NAME?"}]
["ΧΩΜΑΤΟΥΡΓΙΚΑ","1,04","Εκσκαφές θεμελίων γαιώδεις","κ.μ.",5.28,0,{"$error":"#NAME?"},{"$error":"#NAME?"}]
["ΧΩΜΑΤΟΥΡΓΙΚΑ","1,05","Εκσκαφές θεμελίων ημιβραχώδεις","κ.μ.",5.2,0,{"$error":"#NAME?"},{"$error":"#NAME?"}]
["ΧΩΜΑΤΟΥΡΓΙΚΑ","1,06","Εκσκαφές θεμελίων βραχώδεις","κ.μ.",5.28,0,{"$error":"#NAME?"},{"$error":"#NAME?"}]
["ΧΩΜΑΤΟΥΡΓΙΚΑ","1,07","Επιχώσας με προϊόντα εκσκαφής","κ.μ.",1.18,0,{"$error":"#NAME?"},{"$error":"#NAME?"}]
["ΧΩΜΑΤΟΥΡΓΙΚΑ","1,08","Ειδικές εττιχώσεις (σκύρα κ.λπ.)","κ.μ.",5.86,0,{"$error":"#NAME?"},{"$error":"#NAME?"}]
[null,null,null,null,null," ","σελιδας",{"$f":"SUM(H9:H16)","v":{"$error":"#NAME?"}}]
[null,null,null,null,null,"ΣΥΝΟΛΟ"," ΣΕΛΙΔΩΝ",{"$f":"H17","v":{"$error":"#NAME?"}}]

{"sheet":"ΚΑΘΡ","index":1,"n_rows":16,"n_cols":8,"rows_kept":16,"cut":false,"hidden":false,"merged":[]}
[]
[null,null,null,null,null,null,"ΣΕΛ.",2]
[null,"α/α","Είδος Εργασίας","Μονάδα Μέτρησης","Τιμή Μονάδος  €   ","ΠΡΑΞΗ","ποσότητα","Σύνολο    €"]
[null,2,"ΚΑΘΑΙΡΕΣΕΙΣ"," ",null,null,"ΜΕΤΑΦΟΡΑ",{"$f":"ΧΜΤΡΓ!H18","v":{"$error":"#NAME?"}}]
["ΚΑΘΑΙΡΕΣΕΙΣ","2,01","Καθαίρεση ττλινθοδομής με συνήθη κονιάματα","κ.μ.",11.74,0,{"$f":"+EVAL(F5)","v":{"$error":"#NAME?"}},{"$f":"G5*E5","v":{"$error":"#NAME?"}}]
["ΚΑΘΑΙΡΕΣΕΙΣ","2,02","Καθαίρεση πλινθοδομών με ισχυρό κονίαμα","κ.μ.",14.88,0,{"$error":"#NAME?"},{"$error":"#NAME?"}]
["ΚΑΘΑΙΡΕΣΕΙΣ","2,03","Καθαίρεση άοπλου σκυροδέματος","κ.μ.",41.08,0,{"$error":"#NAME?"},{"$error":"#NAME?"}]
["ΚΑΘΑΙΡΕΣΕΙΣ","2,04","Καθαίρεση οπλισμένου σκυροδέματος","κ.μ.",84.56,0,{"$error":"#NAME?"},{"$error":"#NAME?"}]
["ΚΑΘΑΙΡΕΣΕΙΣ","2,05","Καθαίρεση επιχρισμάτων","τ. μ.",4.0999999999999996,0,{"$error":"#NAME?"},{"$error":"#NAME?"}]
["ΚΑΘΑΙΡΕΣΕΙΣ","2,06","Καθαίρεση τοίχων δια την διαμόρφωση θυρών","τεμ.",14.68,0,{"$error":"#NAME?"},{"$error":"#NAME?"}]
["ΚΑΘΑΙΡΕΣΕΙΣ","2,07","Καθαίρεση ξύλινων ή σιδηρών θυρών και παραθύρων","τ.μ.",3.8,0,{"$error":"#NAME?"},{"$error":"#NAME?"}]
["ΚΑΘΑΙΡΕΣΕΙΣ","2,08","Αποξήλωοη σκελετού στέγης πάσης φύσεως","τ.μ.",1.5,0,{"$error":"#NAME?"},{"$error":"#NAME?"}]
["ΚΑΘΑΙΡΕΣΕΙΣ",2.09,"Αποξήλωση υλικών επικάλυψης στέγης (κεραμίδια, πάνελς κ.λ.π)","τ.μ.",0.8,0,{"$error":"#NAME?"},{"$error":"#NAME?"}]
["ΚΑΘΑΙΡΕΣΕΙΣ","2,1","Αποξήλωση κιγκλιδωμάτων","τ.μ.",0.8,null,{"$error":"#NAME?"},{"$error":"#NAME?"}]
[null,null,null,null,null,"συνολο","σελιδας",{"$f":"SUM(H5:H14)","v":{"$error":"#NAME?"}}]
[null,null,null,null,null,"ΣΥΝΟΛΟ"," ΣΕΛΙΔΩΝ",{"$f":"H4+H15","v":{"$error":"#NAME?"}}]

{"sheet":"ΣΚΥΡΔ","index":2,"n_rows":16,"n_cols":8,"rows_kept":16,"cut":false,"hidden":false,"merged":[]}
[null,null,null,null,null,null,"ΣΕΛ.",3]
[null,"α/α","Είδος Εργασίας","Μονάδα Μέτρησης","Τιμή Μονάδος  €   ","ΠΡΑΞΗ","ποσότητα","Σύνολο    €"]
[null,3,"ΣΚΥΡΟΔΕΜΑΤΑ",null,null,"<Κ2.ΕΠΕΚΤΑΣΗ ΕΜΠΡΟΣ ΕΞΩΣΤΗ σε ΔΑΠΕΔΟ Γ ΟΡΟΦΟΥ >","ΜΕΤΑΦΟΡΑ",{"$f":"ΚΑΘΡ!H16","v":{"$error":"#NAME?"}}]
["ΣΚΥΡΟΔΕΜΑΤΑ","3,01","Οπλισμένο σκυρόδεμα","κ.μ.",146.74,0,{"$f":"+EVAL(F4)","v":{"$error":"#NAME?"}},{"$f":"G4*E4","v":{"$error":"#NAME?"}}]
["ΣΚΥΡΟΔΕΜΑΤΑ","3,02","Ελαφρά οπλισμένο σκυρόδεμα (με πλέγμα)","κ.μ.",105.64,0,{"$error":"#NAME?"},{"$error":"#NAME?"}]
["ΣΚΥΡΟΔΕΜΑΤΑ","3,03","Ελαφρο Μπετόν","κ. μ.",70.44,0,{"$error":"#NAME?"},{"$error":"#NAME?"}]
["ΣΚΥΡΟΔΕΜΑΤΑ","3,04","Αοπλο σκυρόδεμα δαπέδων","τ.μ.",5.86,0,{"$error":"#NAME?"},{"$error":"#NAME?"}]
["ΣΚΥΡΟΔΕΜΑΤΑ","3,05","Εξισωτικές στρώσεις","τ.μ.",4.0999999999999996,0,{"$error":"#NAME?"},{"$error":"#NAME?"}]
["ΣΚΥΡΟΔΕΜΑΤΑ","3,06","επιφάνειες εμφανούς σκυροδέματος","τ.μ.",5.86,0,{"$error":"#NAME?"},{"$error":"#NAME?"}]
["ΣΚΥΡΟΔΕΜΑΤΑ",3.07,"Σενάζ δρομικά","μ.",7.04,0,{"$error":"#NAME?"},{"$error":"#NAME?"}]
["ΣΚΥΡΟΔΕΜΑΤΑ","3,06","Σενάζ μπατικά","μ.",11.74,0,{"$error":"#NAME?"},{"$error":"#NAME?"}]
["ΣΚΥΡΟΔΕΜΑΤΑ","3,09","Μανδύας Χυτού σκυροδέματος","κ.μ.",234.78,0,{"$error":"#NAME?"},{"$error":"#NAME?"}]
["ΣΚΥΡΟΔΕΜΑΤΑ","3,1","Μανδύας εκτοξευόμενου σκυροδέματος","τ.μ.",46.96,0,{"$error":"#NAME?"},{"$error":"#NAME?"}]
["ΣΚΥΡΟΔΕΜΑΤΑ","3,11","Σιδηροδοκοί (ΙΡΕ, ΙΡΝ, ΗΕΒ, Κοίλοι κ.λ.π.) ως φέρων οργανισμός","κιλό",1.8,0,{"$error":"#NAME?"},{"$error":"#NAME?"}]
[null,null,null,null,null,"συνολο","σελιδας",{"$f":"SUM(H4:H14)","v":{"$error":"#NAME?"}}]
[null,null,null,null,null,"ΣΥΝΟΛΟ"," ΣΕΛΙΔΩΝ",{"$f":"H15+H3","v":{"$error":"#NAME?"}}]

{"sheet":"ΤΟΙΧ","index":3,"n_rows":17,"n_cols":8,"rows_kept":17,"cut":false,"hidden":false,"merged":[]}
[null,null,null,null,null,null,"ΣΕΛ.",4]
[null,"α/α","Είδος Εργασίας","Μονάδα Μέτρησης","Τιμή Μονάδος  €   ","ΠΡΑΞΗ","ποσότητα","Σύνολο    €"]
[null,4,"ΤΟΙΧΟΠΟΙΙΕΣ",null,null,null,"ΜΕΤΑΦΟΡΑ",{"$f":"ΣΚΥΡΔ!H16","v":{"$error":"#NAME?"}}]
["ΤΟΙΧΟΠΟΙΙΕΣ","4,01","λιθοδομές με αργούς λίθους","τ.μ.",29.34,0,{"$f":"+EVAL(F4)","v":{"$error":"#NAME?"}},{"$f":"G4*E4","v":{"$error":"#NAME?"}}]
["ΤΟΙΧΟΠΟΙΙΕΣ","4,02","λιθοδομές με λαξευτούς λίθους","τ.μ.",46.96,null,{"$error":"#NAME?"},{"$error":"#NAME?"}]
["ΤΟΙΧΟΠΟΙΙΕΣ","4,03","πλίνθοδομές δρομικές","τ.μ.",8.2200000000000006,0,{"$error":"#NAME?"},{"$error":"#NAME?"}]
["ΤΟΙΧΟΠΟΙΙΕΣ","4,04","πλινθοδομές μπατικές","τ.μ.",15.26,0,{"$error":"#NAME?"},{"$error":"#NAME?"}]
["ΤΟΙΧΟΠΟΙΙΕΣ","4,05","τσιμεντολιθοδομές","τ.μ.",7.64,0,{"$error":"#NAME?"},{"$error":"#NAME?"}]
["ΤΟΙΧΟΠΟΙΙΕΣ","4,06","Κισσηρολιθοδομές","τ.μ.",8.8000000000000007,null,{"$error":"#NAME?"},{"$error":"#NAME?"}]
["ΤΟΙΧΟΠΟΙΙΕΣ","4,09","τοΙχοι γυψοσανίδων απλοί","τ.μ.",23.48,0,{"$error":"#NAME?"},{"$error":"#NAME?"}]
["ΤΟΙΧΟΠΟΙΙΕΣ",4.08,"τοίχοι γυψοσανίδων με 2 γύψους","τ.μ.",29.34,null,{"$error":"#NAME?"},{"$error":"#NAME?"}]
["ΤΟΙΧΟΠΟΙΙΕΣ","4,09","τσιμεντοσανίδες","τ·μ·",36,0,{"$error":"#NAME?"},{"$error":"#NAME?"}]
["ΤΟΙΧΟΠΟΙΙΕΣ","4,1","Από ελαφρά δομικά στοιχεία τύπου ΥΤΟΝG, ΑLFΑ ΒLΟCΚ κ.λ.π.","τ.μ.",12,null,{"$error":"#NAME?"},{"$error":"#NAME?"}]
["ΤΟΙΧΟΠΟΙΙΕΣ","4,11","Διαχωριστικοί υαλότοιχοι","τ.μ.",40,null,{"$error":"#NAME?"},{"$error":"#NAME?"}]
["ΤΟΙΧΟΠΟΙΙΕΣ","4,12","διαχωριστικοί τοίχοι με υλικά Βιομηχανικής προέλευσης (ΜDF, μελαμίνες κ,λ.π.) σε μεταλλικό σκελετό","τ.μ.",35,null,{"$error":"#NAME?"},{"$error":"#NAME?"}]
[null,null,null,null,null,"συνολο","σελιδας",{"$f":"SUM(H4:H15)","v":{"$error":"#NAME?"}}]
[null,null,null,null,null,"ΣΥΝΟΛΟ"," ΣΕΛΙΔΩΝ",{"$f":"H16+H3","v":{"$error":"#NAME?"}}]

{"sheet":"EΠΧ-επενδ","index":4,"n_rows":18,"n_cols":9,"rows_kept":18,"cut":false,"hidden":false,"merged":[]}
[null,null,null,null,null,null,"ΣΕΛ.",5]
[null,"α/α","Είδος Εργασίας","Μονάδα Μέτρησης","Τιμή Μονάδος  €   ","ΠΡΑΞΗ","ποσότητα","Σύνολο    €"]
[null,5,"ΕΠΙΧΡΙΣΜΑΤΑ",null,null,null,"ΜΕΤΑΦΟΡΑ",{"$f":"ΤΟΙΧ!H17","v":{"$error":"#NAME?"}}]
["ΕΠΙΧΡΙΣΜΑΤΑ","5,01","Ασβεστοτσιμεντοκονίάυατα τριτπά","τ.μ.",5.3609999999999998,0,{"$f":"+EVAL(F4)","v":{"$error":"#NAME?"}},{"$f":"G4*E4","v":{"$error":"#NAME?"}}]
["ΕΠΙΧΡΙΣΜΑΤΑ","5,02","Τσιμεντοκονιάματα τριπτά με διωγκωμένο περλίτη στη 2η στρώση","τ.μ.",3.46,0,{"$error":"#NAME?"},{"$error":"#NAME?"}]
["ΕΠΙΧΡΙΣΜΑΤΑ","5,03","Ασβεστοτσιμεντοκονιάματα με επικάλυψη σαγρέ","τ.μ.",7.04,0,{"$error":"#NAME?"},{"$error":"#NAME?"}]
["ΕΠΙΧΡΙΣΜΑΤΑ","5,04","Αρτίφίσιέλ τριπτά","τ.μ.",3.3,0,{"$error":"#NAME?"},{"$error":"#NAME?"}]
["ΕΠΙΧΡΙΣΜΑΤΑ","5,05","Επιχρίσματα χωριάτικου τύπου","τ.μ.",7.64,0,{"$error":"#NAME?"},{"$error":"#NAME?"}]
["ΕΠΙΧΡΙΣΜΑΤΑ","5,06","Ετπχρίσματα τραβηχτά","μ.",29.34,0,{"$error":"#NAME?"},{"$error":"#NAME?"}]
[null,6,"ΕΠΕΝΔΥΣΕΙΣ ΤΟΙΧΩΝ",null,null,null,null,null,{"$f":"F10","v":0}]
["ΕΠΕΝΔΥΣΕΙΣ ΤΟΙΧΩΝ","8,01","Με πλακίδια πορσελάνης","τ.μ.",29.34,null,{"$f":"+EVAL(F11)","v":{"$error":"#NAME?"}},{"$f":"G11*E11","v":{"$error":"#NAME?"}}]
["ΕΠΕΝΔΥΣΕΙΣ ΤΟΙΧΩΝ",8.02,"Με ξύλο","τ.μ.",29.34,0,{"$f":"+EVAL(F12)","v":{"$error":"#NAME?"}},{"$error":"#NAME?"}]
["ΕΠΕΝΔΥΣΕΙΣ ΤΟΙΧΩΝ","6,03","Με διακοσμητικά τούβλα","τ.μ.",35.22,0,{"$f":"+EVAL(F13)","v":{"$error":"#NAME?"}},{"$error":"#NAME?"}]
["ΕΠΕΝΔΥΣΕΙΣ ΤΟΙΧΩΝ","6,04","Με λίθινες πλάκες (Καρύστου)","τ.μ.",41.08,null,{"$f":"+EVAL(F14)","v":{"$error":"#NAME?"}},{"$error":"#NAME?"}]
["ΕΠΕΝΔΥΣΕΙΣ ΤΟΙΧΩΝ","6,05","Με πλάκες μαρμάρου","τ.μ.",41.08,null,{"$f":"+EVAL(F15)","v":{"$error":"#NAME?"}},{"$error":"#NAME?"}]
["ΕΠΕΝΔΥΣΕΙΣ ΤΟΙΧΩΝ","6,06","Με αλουμίνιο","τ.μ.",117.38,null,null,0]
[null,null,null,null,null,"συνολο","σελιδας",{"$f":"SUM(H4:H16)","v":{"$error":"#NAME?"}}]
[null,null,null,null,null,"ΣΥΝΟΛΟ"," ΣΕΛΙΔΩΝ",{"$f":"H17+H3","v":{"$error":"#NAME?"}}]

{"sheet":"ΔΑΠ","index":5,"n_rows":16,"n_cols":8,"rows_kept":16,"cut":false,"hidden":false,"merged":[]}
[null,null,null,null,null,null,"ΣΕΛ.",6]
[null,"α/α","Είδος Εργασίας","Μονάδα Μέτρησης","Τιμή Μονάδος  €   ","ΠΡΑΞΗ","ποσότητα","Σύνολο    €"]
[null,7,"ΣΤΡΩΣΕΙΣ ΔΑΠΕΔΩΝ",null,null,null,"ΜΕΤΑΦΟΡΑ",{"$f":"'EΠΧ-επενδ'!H18","v":{"$error":"#NAME?"}}]
["ΣΤΡΩΣΕΙΣ ΔΑΠΕΔΩΝ","7,01","Με τσιμεντοκονία","τ.μ.",8.8000000000000007,0,{"$f":"+EVAL(F4)","v":{"$error":"#NAME?"}},{"$f":"G4*E4","v":{"$error":"#NAME?"}}]
["ΣΤΡΩΣΕΙΣ ΔΑΠΕΔΩΝ","7,02","Με τσιμεντόπλακες","τ.μ.",11.74,null,{"$error":"#NAME?"},{"$error":"#NAME?"}]
["ΣΤΡΩΣΕΙΣ ΔΑΠΕΔΩΝ",7.03,"Με γαρμπιλομωσαϊκό","τ.μ.",11.74,0,{"$error":"#NAME?"},{"$error":"#NAME?"}]
["ΣΤΡΩΣΕΙΣ ΔΑΠΕΔΩΝ","7,04","Με μωσαϊκό λευκού τσιμέντου","τ.μ.",17.8,0,{"$error":"#NAME?"},{"$error":"#NAME?"}]
["ΣΤΡΩΣΕΙΣ ΔΑΠΕΔΩΝ","7,05","Με λίθινες πλάκες (Καρύστου κ.λ.π.)","τ.μ.",29.34,null,{"$error":"#NAME?"},{"$error":"#NAME?"}]
["ΣΤΡΩΣΕΙΣ ΔΑΠΕΔΩΝ","7,06","Με πλάκες μαρμάρου","τ.μ.",35.22,null,{"$error":"#NAME?"},{"$error":"#NAME?"}]
["ΣΤΡΩΣΕΙΣ ΔΑΠΕΔΩΝ","7,07","Με πλακίδια κεραμικά ή πορσελάνης","τ.μ.",35.22,0,{"$error":"#NAME?"},{"$error":"#NAME?"}]
["ΣΤΡΩΣΕΙΣ ΔΑΠΕΔΩΝ","7,08","Με πλαστικά πλακίδια ή τάπητα","τ.μ.",11.74,0,{"$error":"#NAME?"},{"$error":"#NAME?"}]
["ΣΤΡΩΣΕΙΣ ΔΑΠΕΔΩΝ","7,09","Με λωρίδες σουηδικής ξυλείας","τ.μ.",35.22,0,{"$error":"#NAME?"},{"$error":"#NAME?"}]
["ΣΤΡΩΣΕΙΣ ΔΑΠΕΔΩΝ","7,1","Με λωρίδες αφρικανικής ξυλείας","τ.μ.",46.98,0,{"$error":"#NAME?"},{"$error":"#NAME?"}]
["ΣΤΡΩΣΕΙΣ ΔΑΠΕΔΩΝ","7,11","Με λωρίδες δρυός","τ.μ.",58.7,0,{"$error":"#NAME?"},{"$error":"#NAME?"}]
["ΣΤΡΩΣΕΙΣ ΔΑΠΕΔΩΝ","7,12","Με μοκέτα","τ.μ.",17.600000000000001,null,{"$error":"#NAME?"},{"$error":"#NAME?"}]
["ΣΤΡΩΣΕΙΣ ΔΑΠΕΔΩΝ","7,13","Ασφαλτικές στρώσεις","τ.μ.",14,null,{"$error":"#NAME?"},{"$error":"#NAME?"}]

{"sheet":"ΚΟΥΦ","index":6,"n_rows":24,"n_cols":8,"rows_kept":24,"cut":false,"hidden":false,"merged":[]}
[null,null,null,null,null,null,"ΣΕΛ.",7]
[null,"α/α","Είδος Εργασίας","Μονάδα Μέτρησης","Τιμή Μονάδος  €   ","ΠΡΑΞΗ","ποσότητα","Σύνολο    €"]
[null,8,"ΚΟΥΦΩΜΑΤΑ",null,null,null," "," "]
["ΚΟΥΦΩΜΑΤΑ","8,01","Πόρτες πρεσσαριστές κοινές","τ.μ.",58.7,0,{"$f":"+EVAL(F4)","v":{"$error":"#NAME?"}},{"$f":"G4*E4","v":{"$error":"#NAME?"}}]
["ΚΟΥΦΩΜΑΤΑ","8,02","Πόρτες πρεσσαριστες ακουμέ","τ.μ.",70.44,0,{"$error":"#NAME?"},{"$error":"#NAME?"}]
["ΚΟΥΦΩΜΑΤΑ","8,03","Πόρτες πρεσσαριστες με καπλ. & κάσες από συμπαγή δρυ ή καρυδιά","τ.μ.",146.74,0,{"$error":"#NAME?"},{"$error":"#NAME?"}]
["ΚΟΥΦΩΜΑΤΑ","8,04","Πόρτες ραμττοτέ ή ταμπλαδωτες από σουηδική ξυλεία","τ.μ.",102.72,0,{"$error":"#NAME?"},{"$error":"#NAME?"}]
["ΚΟΥΦΩΜΑΤΑ","8,05","Πόρτες ραμποτέ ή ταμπλαδωτες από δρυ, καρυδιά κ.λ.π.","τ.μ.",234.78,null,{"$error":"#NAME?"},{"$error":"#NAME?"}]
["ΚΟΥΦΩΜΑΤΑ","8,06","Υαλοστάσια από σουηδική ξυλεία","τ.μ.",88.04,0,{"$error":"#NAME?"},{"$error":"#NAME?"}]
["ΚΟΥΦΩΜΑΤΑ","8,07","Υαλοστάσια από όρεγκον πάιν","τ.μ.",117.38,0,{"$error":"#NAME?"},{"$error":"#NAME?"}]
["ΚΟΥΦΩΜΑΤΑ","8,08","Σκούρα από σουηδική ξυλεία","τ.μ.",38.04,null,{"$error":"#NAME?"},{"$error":"#NAME?"}]
["ΚΟΥΦΩΜΑΤΑ","8,09","Σκούρα από όρεγκον πάιν","τ.μ.",117.38,0,{"$error":"#NAME?"},{"$error":"#NAME?"}]
["ΚΟΥΦΩΜΑΤΑ","8,1","Ρολλά από όρεγκον πάιν","τ.μ.",88.04,0,{"$error":"#NAME?"},{"$error":"#NAME?"}]
["ΚΟΥΦΩΜΑΤΑ","8,11","Ρολλά πλαστικά","τ.μ.",35.22,0,{"$error":"#NAME?"},{"$error":"#NAME?"}]
["ΚΟΥΦΩΜΑΤΑ","8,12","Σιδερενιες πόρτες","τ.μ.",58.7,0,{"$error":"#NAME?"},{"$error":"#NAME?"}]
["ΚΟΥΦΩΜΑΤΑ","8,13","Σιδερένια παράθυρα","τ.μ.",46.96,0,{"$error":"#NAME?"},{"$error":"#NAME?"}]
["ΚΟΥΦΩΜΑΤΑ","8,14","Σιδερένιες βιτρίνες","τ.μ.",46.96,null,{"$error":"#NAME?"},{"$error":"#NAME?"}]
["ΚΟΥΦΩΜΑΤΑ","8,15","Συρόμενα ή σταθερά υαλοστάσια αλουμινίου","τ.μ.",76.3,0,{"$error":"#NAME?"},{"$error":"#NAME?"}]
["ΚΟΥΦΩΜΑΤΑ","8,16","Συρόμενα ή σταθερά σκούρα με πλαστικά φύλλα","τ.μ.",41.08,0,{"$error":"#NAME?"},{"$error":"#NAME?"}]
["ΚΟΥΦΩΜΑΤΑ","8,17","Αναγόμενα (περιστρεφόμενα) κουφώματα αλουμινίου","τ.μ.",105.64,0,{"$error":"#NAME?"},{"$error":"#NAME?"}]
["ΚΟΥΦΩΜΑΤΑ","8,18","Βιτρίνες αλουμινίου                                                       ","τ.μ.",70.44,0,{"$error":"#NAME?"},{"$error":"#NAME?"}]
["ΚΟΥΦΩΜΑΤΑ","8,19","Μονόφυλλη πυράντοχη πόρτα Τ30 ως Τ90 πλήρως εξοπλισμένη",null,704.32,0,{"$error":"#NAME?"},{"$error":"#NAME?"}]
["ΚΟΥΦΩΜΑΤΑ","8,20","Δίφυλλη πυράντοχη πόρτα Τ30 ως Τ90 πλήρως εξοπλισμένη","τεμ.",1173.8800000000001,null,{"$error":"#NAME?"},{"$error":"#NAME?"}]
["ΚΟΥΦΩΜΑΤΑ","8,21","γκαραζόπορτες ανακλινόμενες","τ.μ.",120,0,{"$error":"#NAME?"},{"$error":"#NAME?"}]

{"sheet":"ΝΤΛ-μον","index":7,"n_rows":13,"n_cols":9,"rows_kept":13,"cut":false,"hidden":false,"merged":[]}
[null,null,null,null,null,null,"ΣΕΛ.",8]
[null,"α/α","Είδος Εργασίας","Μονάδα Μέτρησης","Τιμή Μονάδος  €   ","ΠΡΑΞΗ","ποσότητα","Σύνολο    €"]
[null,9,"ΝΤΟΥΛΑΠΙΑ",null,null,null,"ΜΕΤΑΦΟΡΑ"," "]
["ΝΤΟΥΛΑΠΙΑ","9,01","Ντουλάπες κοινές (υπνοδωματίων)","τ.μ. όψης",117.38,0,{"$f":"+EVAL(F4)","v":{"$error":"#NAME?"}},{"$f":"G4*E4","v":{"$error":"#NAME?"}}]
["ΝΤΟΥΛΑΠΙΑ","9,02","Ντουλάπια κουζίνας κοινά","μ.",88,0,{"$error":"#NAME?"},{"$f":"G5*E5","v":{"$error":"#NAME?"}}]
["ΝΤΟΥΛΑΠΙΑ","9,03","Ντουλάπια κουζίνας με φορμάικα ή καπλαμά","μ.",117.3,0,{"$error":"#NAME?"},{"$f":"G6*E6","v":{"$error":"#NAME?"}}]
["ΝΤΟΥΛΑΠΙΑ","9,04","Ντουλάπια κουζίνας από συμπαγή ξυλεία","μ.",293.39999999999998,0,{"$error":"#NAME?"},{"$f":"G7*E7","v":{"$error":"#NAME?"}}]
[null,10,"ΜΟΝΟΣΕΙΣ - ΣΤΕΓΑΝΩΣΕΙΣ",null,null,null," "," ",{"$f":"F8","v":0}]
["ΜΟΝΟΣΕΙΣ - ΣΤΕΓΑΝΩΣΕΙΣ","10,01","Θερμομόνωση - υγρομόνωση δώματος","τ.μ.",29.3,0,{"$error":"#NAME?"},{"$f":"G9*E9","v":{"$error":"#NAME?"}}]
["ΜΟΝΟΣΕΙΣ - ΣΤΕΓΑΝΩΣΕΙΣ","10,02","Θερμομόνωση - υγρομόνωση βεραντών","τ.μ.",14.6,0,{"$error":"#NAME?"},{"$f":"G10*E10","v":{"$error":"#NAME?"}}]
["ΜΟΝΟΣΕΙΣ - ΣΤΕΓΑΝΩΣΕΙΣ","10,03","Θερμομόνωση - κατακόρυφων επιφανειών","τ.μ.",5.8,0,{"$error":"#NAME?"},{"$f":"G11*E11","v":{"$error":"#NAME?"}}]
["ΜΟΝΟΣΕΙΣ - ΣΤΕΓΑΝΩΣΕΙΣ","10,04","Υγρομόνωση τοιχείων υπογείων","τ.μ.",4,null,{"$f":"+EVAL(F12)","v":{"$error":"#NAME?"}},{"$f":"G12*E12","v":{"$error":"#NAME?"}}]
["ΜΟΝΟΣΕΙΣ - ΣΤΕΓΑΝΩΣΕΙΣ","10,05","Υγρομόνωση δαπέδων επί εδάφους","τ.μ.",5.8,null,{"$error":"#NAME?"},{"$f":"G13*E13","v":{"$error":"#NAME?"}}]

{"sheet":"ΜΡΜκλιμΥΑΛψευδ","index":8,"n_rows":16,"n_cols":9,"rows_kept":16,"cut":false,"hidden":false,"merged":[]}
[null,null,null,null,null,null,"ΣΕΛ.",9]
[null,"α/α","Είδος Εργασίας","Μονάδα Μέτρησης","Τιμή Μονάδος  €   ","ΠΡΑΞΗ","ποσότητα","Σύνολο    €"]
[null,11,"ΜΑΡΜΑΡΙΚΑ",null,null,null," "," "]
["ΜΑΡΜΑΡΙΚΑ","11,01","Κατώφλια, επίστρωση στηθαίων, ποδιές παραθύρων μπαλκονιών","μ.",8,0,{"$f":"+EVAL(F4)","v":{"$error":"#NAME?"}},{"$f":"G4*E4","v":{"$error":"#NAME?"}}]
["ΜΑΡΜΑΡΙΚΑ","11,02","Μαρμαροεπένδυση βαθμίδος","μ.",29.3,0,{"$error":"#NAME?"},{"$f":"G5*E5","v":{"$error":"#NAME?"}}]
[null,12,"ΚΛΙΜΑΚΕΣ"]
["ΚΛΙΜΑΚΕΣ","12,01","Σιδερένια βαθμίδα","μ.",23.4,0,{"$f":"+EVAL(F7)","v":{"$error":"#NAME?"}},{"$f":"G7*E7","v":{"$error":"#NAME?"}}]
["ΚΛΙΜΑΚΕΣ","12,02","Ξύλινη βαθμίδα","μ.",58,null,{"$error":"#NAME?"},{"$f":"G8*E8","v":{"$error":"#NAME?"}}]
["ΚΛΙΜΑΚΕΣ",13,"ΥΑΛΟΠΙΝΑΚΕΣ",null,null,null,null,null,{"$f":"F9","v":0}]
["ΚΛΙΜΑΚΕΣ","13,01","Απλοί","τ.μ.",6.46,0,{"$f":"+EVAL(F10)","v":{"$error":"#NAME?"}},{"$f":"G10*E10","v":{"$error":"#NAME?"}}]
["ΚΛΙΜΑΚΕΣ","13,02","Διπλοί θερμομονωτικοί","τ.μ.",38.159999999999997,null,{"$error":"#NAME?"},{"$f":"G11*E11","v":{"$error":"#NAME?"}}]
[null,14,"ΨΕΥΔΟΡΟΦΕΣ"]
["ΨΕΥΔΟΡΟΦΕΣ","14,01","Επίχρισμα σε μεταλλικό πλέγμα","τ.μ.",15.26,0,{"$f":"+EVAL(F13)","v":{"$error":"#NAME?"}},{"$f":"G13*E13","v":{"$error":"#NAME?"}}]
["ΨΕΥΔΟΡΟΦΕΣ","14,02","Από γυψοσανίδες","τ.μ.",17.600000000000001,0,{"$error":"#NAME?"},{"$f":"G14*E14","v":{"$error":"#NAME?"}}]
["ΨΕΥΔΟΡΟΦΕΣ","14,03","Από πλάκες ορυκτών ινών σε μεταλλικό σκελετό","τ.μ.",17.600000000000001,0,{"$error":"#NAME?"},{"$f":"G15*E15","v":{"$error":"#NAME?"}}]
["ΨΕΥΔΟΡΟΦΕΣ","14,04","Από ξύλο","τ.μ.",23.48,0,{"$error":"#NAME?"},{"$f":"G16*E16","v":{"$error":"#NAME?"}},0]

{"sheet":"ΕΠΙΚΑΛ στηθ","index":9,"n_rows":17,"n_cols":8,"rows_kept":17,"cut":false,"hidden":false,"merged":[]}
[null,null,null,null,null,null,"ΣΕΛ.",10]
[null,"α/α","Είδος Εργασίας","Μονάδα Μέτρησης","Τιμή Μονάδος  €   ","ΠΡΑΞΗ","ποσότητα","Σύνολο    €"]
[null,15,"ΕΠΙΚΑΛΥΨΕΙΣ",null,null,null," "," "]
["ΕΠΙΚΑΛΥΨΕΙΣ","15,01","Επικεράμωση πλάκας σκυροδέματος","τ.μ.",23.48,0,{"$f":"+EVAL(F4)","v":{"$error":"#NAME?"}},{"$f":"G4*E4","v":{"$error":"#NAME?"}}]
["ΕΠΙΚΑΛΥΨΕΙΣ","15,02","Ξύλινη στέγη με κεραμίδια εδραζόμενη σε πλάκα σκυροδέματος","τ.μ",41.08,0,{"$error":"#NAME?"},{"$error":"#NAME?"}]
["ΕΠΙΚΑΛΥΨΕΙΣ","15,03","Ξύλινη στέγη αυτοφερόμενη με κεραμίδια","τ.μ.",70.44,0,{"$f":"+EVAL(F6)","v":{"$error":"#NAME?"}},{"$error":"#NAME?"}]
["ΕΠΙΚΑΛΥΨΕΙΣ","15,04","Σιδερένια στέγη με αυλακωτή λαμαρίνα","τ.μ.",23.48,0,{"$error":"#NAME?"},{"$error":"#NAME?"}]
["ΕΠΙΚΑΛΥΨΕΙΣ","15,05","Σιιδερένια στέγη με φύλλα αμιαντοτσιμέντου","τ.μ.",23.48,0,{"$error":"#NAME?"},{"$error":"#NAME?"}]
["ΕΠΙΚΑΛΥΨΕΙΣ","15,06","Επικάλυψη με σχιστόπλακες","τ.μ.",32,0,{"$error":"#NAME?"},{"$error":"#NAME?"}]
["ΕΠΙΚΑΛΥΨΕΙΣ","15,07","Επικάλυψη με πολυκαρβονικά φύλλα","τ.μ.",16,0,{"$f":"+EVAL(F10)","v":{"$error":"#NAME?"}},{"$error":"#NAME?"}]
[null,16,"ΣΤΗΘΑΙΑ"]
["ΣΤΗΘΑΙΑ","16,01","Από οπλισμένο σκυρόδεμα","μ.",23.48,0,{"$f":"+EVAL(F12)","v":{"$error":"#NAME?"}},{"$f":"G12*E12","v":{"$error":"#NAME?"}}]
["ΣΤΗΘΑΙΑ","16,02","Από δρομική πλινθοδομή","μ.",8.8000000000000007,0,{"$error":"#NAME?"},{"$error":"#NAME?"}]
["ΣΤΗΘΑΙΑ","16,03","Από κιγκλίδωμα σιδερένιο","μ.",23.48,0,{"$error":"#NAME?"},{"$error":"#NAME?"}]
["ΣΤΗΘΑΙΑ","16,04","Από κιγκλίδωμα αλουμινίου","μ,",35.22,0,{"$error":"#NAME?"},{"$error":"#NAME?"}]
["ΣΤΗΘΑΙΑ","16,05","Από κιγκλίδωμα ξύλινο","μ·",46.96,0,{"$error":"#NAME?"},{"$error":"#NAME?"}]
["ΣΤΗΘΑΙΑ","16,06","Από υαλοπίνακες ασφαλείας (SECURIT)","μ.",61.5,0,{"$error":"#NAME?"},{"$error":"#NAME?"}]

{"sheet":"ΧΡΜ-διαφρ","index":10,"n_rows":18,"n_cols":9,"rows_kept":18,"cut":false,"hidden":false,"merged":[]}
[null,null,null,null,null,null,"ΣΕΛ.",11]
[null,"α/α","Είδος Εργασίας","Μονάδα Μέτρησης","Τιμή Μονάδος  €   ","ΠΡΑΞΗ","ποσότητα","Σύνολο    €"]
[null,17,"ΧΡΩΜΑΤΙΣΜΟΙ",null,null,null," "," "]
["ΧΡΩΜΑΤΙΣΜΟΙ","17,01","υδροχρωματισμοί απλοί","τ.μ.",1.18,0,{"$f":"+EVAL(F4)","v":{"$error":"#NAME?"}},{"$f":"G4*E4","v":{"$error":"#NAME?"}}]
["ΧΡΩΜΑΤΙΣΜΟΙ","17,02","υδροχρωματισμοί με τσίγκο και κόλλα","τ.μ.",1.46,0,{"$error":"#NAME?"},{"$error":"#NAME?"}]
["ΧΡΩΜΑΤΙΣΜΟΙ","17,03","πλάστικα επί τοίχου","τ.μ.",3.52,0,{"$f":"+EVAL(F6)","v":{"$error":"#NAME?"}},{"$error":"#NAME?"}]
["ΧΡΩΜΑΤΙΣΜΟΙ","17,04","πλαστικά σπατουλαριστά","τ.μ.",5.86,0,{"$error":"#NAME?"},{"$error":"#NAME?"}]
["ΧΡΩΜΑΤΙΣΜΟΙ","17,05","Τσιμεντοχρώματα","τ.μ.",5.86,0,{"$error":"#NAME?"},{"$error":"#NAME?"}]
["ΧΡΩΜΑΤΙΣΜΟΙ","17,06","ακρυλικά και ρελιέφ","τ.μ.",7.04,0,{"$error":"#NAME?"},{"$error":"#NAME?"}]
["ΧΡΩΜΑΤΙΣΜΟΙ","17,07","ρηπολίνες κοινές","τ.μ.",7.04,0,{"$error":"#NAME?"},{"$error":"#NAME?"}]
["ΧΡΩΜΑΤΙΣΜΟΙ","17,08","ρηπολίνες σατινέ","τ.μ.",8.8000000000000007,0,{"$error":"#NAME?"},{"$error":"#NAME?"}]
["ΧΡΩΜΑΤΙΣΜΟΙ","17,09","ντουκοχρώματα","τ.μ.",8.8000000000000007,0,{"$error":"#NAME?"},{"$error":"#NAME?"}]
["ΧΡΩΜΑΤΙΣΜΟΙ","17,1","λούστρα","τ.μ",23.48,0,{"$error":"#NAME?"},{"$error":"#NAME?"}]
[null,18,"ΔΙΑΦΟΡΕΣ ΟΙΚΟΔΟΜΙΚΕΣ ΕΡΓΑΣΙΕΣ",null,null,null,null,null,{"$f":"F14","v":0}]
["ΔΙΑΦΟΡΕΣ ΟΙΚΟΔΟΜΙΚΕΣ ΕΡΓΑΣΙΕΣ","18,01","Μεταλλικά πλέγματα για επιχρίσματα πυροπροστασίας","τ.μ.",8.8000000000000007,0,{"$f":"+EVAL(F15)","v":{"$error":"#NAME?"}},{"$f":"G15*E15","v":{"$error":"#NAME?"}}]
["ΔΙΑΦΟΡΕΣ ΟΙΚΟΔΟΜΙΚΕΣ ΕΡΓΑΣΙΕΣ","18,02","Ικριώματα","τ.μ.",2.06,0,{"$error":"#NAME?"},{"$f":"G16*E16","v":{"$error":"#NAME?"}}]
["ΔΙΑΦΟΡΕΣ ΟΙΚΟΔΟΜΙΚΕΣ ΕΡΓΑΣΙΕΣ","18,03","Τζάκι με καπνοδόχο","αποκοπή",880.42,0,{"$error":"#NAME?"},{"$f":"G17*E17","v":{"$error":"#NAME?"}}]
["ΔΙΑΦΟΡΕΣ ΟΙΚΟΔΟΜΙΚΕΣ ΕΡΓΑΣΙΕΣ","18,04","Κλειδαριές και πόμολα","τμ κάτοψης",0.88,0,{"$error":"#NAME?"},{"$f":"G18*E18","v":{"$error":"#NAME?"}}]

{"sheet":"ΠΕΡΓπεριφρξ WCυδραυλ","index":11,"n_rows":20,"n_cols":9,"rows_kept":20,"cut":false,"hidden":false,"merged":[]}
[null,null,null,null,null,null,"ΣΕΛ.",12]
[null,"α/α","Είδος Εργασίας","Μονάδα Μέτρησης","Τιμή Μονάδος  €   ","ΠΡΑΞΗ","ποσότητα","Σύνολο    €"]
[null,19,"ΠΕΡΓΟΛΕΣ",null,null,null," "," "]
["ΠΕΡΓΟΛΕΣ","19,01","Από μεταλλικό σκελετό","τ.μ.",20,0,{"$f":"+EVAL(F4)","v":{"$error":"#NAME?"}},{"$f":"G4*E4","v":{"$error":"#NAME?"}}]
["ΠΕΡΓΟΛΕΣ","19,02","Από σκελετό αλουμινίου","τ.μ.",25,0,{"$error":"#NAME?"},{"$f":"G5*E5","v":{"$error":"#NAME?"}}]
["ΠΕΡΓΟΛΕΣ","19,03","Από ξυλεία προλουστραρισμένη","κ.μ.",900,0,{"$error":"#NAME?"},{"$f":"G6*E6","v":{"$error":"#NAME?"}}]
["ΠΕΡΓΟΛΕΣ","19,04","Από ξυλεία (χωρίς λούστρο)","κ.μ.",550,0,{"$error":"#NAME?"},{"$f":"G7*E7","v":{"$error":"#NAME?"}}]
[null,20,"ΠΕΡΙΦΡΑΞΕΙΣ",null,null,null,null,null,{"$f":"F8","v":0}]
["ΠΕΡΙΦΡΑΞΕΙΣ","20,01","Πάσσαλοι σιδερένοι","μ.",1.5,0,{"$f":"+EVAL(F9)","v":{"$error":"#NAME?"}},{"$f":"G9*E9","v":{"$error":"#NAME?"}}]
["ΠΕΡΙΦΡΑΞΕΙΣ","20,02","Πάσσαλοι ξύλινα","μ.",2.2000000000000002,0,{"$error":"#NAME?"},{"$f":"G10*E10","v":{"$error":"#NAME?"}}]
["ΠΕΡΙΦΡΑΞΕΙΣ","20,03","Συρματόττλεγμα (κοτετσόσυρμα)","τ.μ.",5,0,{"$error":"#NAME?"},{"$f":"G11*E11","v":{"$error":"#NAME?"}}]
["ΠΕΡΙΦΡΑΞΕΙΣ","20,04","Συρματόττλεγμα τετραγ. Οπής","τ.μ.",7.5,0,{"$error":"#NAME?"},{"$f":"G12*E12","v":{"$error":"#NAME?"}}]
[null,21,"ΕΙΔΗ ΥΓΙΕΙΝΗΣ",null,null,null,null,null,0]
["ΕΙΔΗ ΥΓΙΕΙΝΗΣ","21,01","Πλήρες σετ λουτρού","αποκοπή",469.56,0,{"$f":"+EVAL(F14)","v":{"$error":"#NAME?"}},{"$f":"G14*E14","v":{"$error":"#NAME?"}}]
["ΕΙΔΗ ΥΓΙΕΙΝΗΣ","21,02","Σετ W.C.","αποκοττή",176.08,0,{"$error":"#NAME?"},{"$f":"G15*E15","v":{"$error":"#NAME?"}}]
["ΕΙΔΗ ΥΓΙΕΙΝΗΣ","21,03","Νεροχύτης - μπαταρία κουζίνας","αποκοττή",176.08,0,{"$error":"#NAME?"},{"$f":"G16*E16","v":{"$error":"#NAME?"}}]
[null,22,"ΥΔΡΑΥΛΙΚΕΣ ΕΓΚΑΤΑΣΤΑΣΕΙΣ",null,null,null,null,null,0]
["ΥΔΡΑΥΛΙΚΕΣ ΕΓΚΑΤΑΣΤΑΣΕΙΣ","22,01","Ύδρευση - αποχέτευση πλήρους λουτρού ή εργαστηρίου","αποκοπή",645.64,0,{"$f":"+EVAL(F18)","v":{"$error":"#NAME?"}},{"$f":"G18*E18","v":{"$error":"#NAME?"}},0]
["ΥΔΡΑΥΛΙΚΕΣ ΕΓΚΑΤΑΣΤΑΣΕΙΣ","22,02","Ύδρευση - αποχέτευση ννο νεροχύτη κουζίνας ή εργαστηρίου",null,352.16,0,{"$error":"#NAME?"},{"$f":"G19*E19","v":{"$error":"#NAME?"}},0]
["ΥΔΡΑΥΛΙΚΕΣ ΕΓΚΑΤΑΣΤΑΣΕΙΣ","22,03","Ύδρευση - αποχέτευση κουζίνας ή εργαστηρίου","αποκοπή",352.16,0,{"$error":"#NAME?"},{"$f":"G20*E20","v":{"$error":"#NAME?"}},0]

{"sheet":"ΘψΦΑηλ LIFTδιαφΠΡΒΛ","index":12,"n_rows":21,"n_cols":9,"rows_kept":21,"cut":false,"hidden":false,"merged":[]}
[null,null,null,null,null,null,"ΣΕΛ.",13]
[null,"α/α","Είδος Εργασίας","Μονάδα Μέτρησης","Τιμή Μονάδος  €   ","ΠΡΑΞΗ","ποσότητα","Σύνολο    €"]
[null,23,"ΘΕΡΜΑΝΣΗ - ΨΥΞΗ",null,null,null," "," "]
["ΘΕΡΜΑΝΣΗ - ΨΥΞΗ","23,01","Κεντρική θέρμανση","ΚCAL",0.14000000000000001,0,{"$f":"+EVAL(F4)","v":{"$error":"#NAME?"}},{"$f":"G4*E4","v":{"$error":"#NAME?"}}]
["ΘΕΡΜΑΝΣΗ - ΨΥΞΗ","23,02","Κλιματισμός","ΒΤU",0.14000000000000001,0,{"$error":"#NAME?"},{"$f":"G5*E5","v":{"$error":"#NAME?"}}]
[null,24,"ΦΥΣΙΚΟ ΑΕΡΙΟ",null,null,null,null,null,{"$f":"F6","v":0}]
["ΘΕΡΜΑΝΣΗ - ΨΥΞΗ","24,01","Εγκατάσταση μιας κατοικίας","αποκοπή",293.48,0,{"$f":"+EVAL(F7)","v":{"$error":"#NAME?"}},{"$f":"G7*E7","v":{"$error":"#NAME?"}}]
[null,25,"ΗΛΕΚΤΡΙΚΕΣ ΕΓΚΑΤΑΣΤΑΣΕΙΣ",null,null,null,null,null,0]
["ΗΛΕΚΤΡΙΚΕΣ ΕΓΚΑΤΑΣΤΑΣΕΙΣ","25,01","Κατοικίας","κάτοψης",11.74,0,{"$f":"+EVAL(F9)","v":{"$error":"#NAME?"}},{"$f":"G9*E9","v":{"$error":"#NAME?"}}]
["ΗΛΕΚΤΡΙΚΕΣ ΕΓΚΑΤΑΣΤΑΣΕΙΣ","26,02","Καταστήματος","κάτοψης",5.86,0,{"$error":"#NAME?"},{"$f":"G10*E10","v":{"$error":"#NAME?"}}]
["ΗΛΕΚΤΡΙΚΕΣ ΕΓΚΑΤΑΣΤΑΣΕΙΣ","25,03","γραφείου","κάτοψης",5.86,0,{"$f":"+EVAL(F11)","v":{"$error":"#NAME?"}},{"$f":"G11*E11","v":{"$error":"#NAME?"}}]
[null,26,"ΑΝΕΛΚΥΣΤΗΡΕΣ",null,null,null,null,null,0]
["ΑΝΕΛΚΥΣΤΗΡΕΣ","26,01","Ανελκυστήρας μέχρι 4ρων στάσεων","τεμ.",5869.4,0,{"$f":"+EVAL(F13)","v":{"$error":"#NAME?"}},{"$f":"G13*E13","v":{"$error":"#NAME?"}}]
["ΑΝΕΛΚΥΣΤΗΡΕΣ","26,02","Προσαύξηση ανά στάση πέρα των 4ρων","στάση",586.94000000000005,0,{"$error":"#NAME?"},{"$f":"G14*E14","v":{"$error":"#NAME?"}}]
[null,27,"ΔΙΑΦΟΡΕΣ ΕΓΚΑΤΑΣΤΑΣΕΙΣ"]
["ΔΙΑΦΟΡΕΣ ΕΓΚΑΤΑΣΤΑΣΕΙΣ","27,01","Ηλιακός συλλέκτης","τεμ.",880.42,0,{"$f":"+EVAL(F16)","v":{"$error":"#NAME?"}},{"$f":"G16*E16","v":{"$error":"#NAME?"}}]
[null,28,"ΠΕΡΙΒΑΛΛΟΝ ΧΩΡΟΣ",null,null,null,null,null,0]
["ΠΕΡΙΒΑΛΛΟΝ ΧΩΡΟΣ","28,01","Περιβάλλων χώρος","αποκοττή",0,0,{"$f":"+EVAL(F18)","v":{"$error":"#NAME?"}},{"$f":"G18*E18","v":{"$error":"#NAME?"}}]
["ΠΕΡΙΒΑΛΛΟΝ ΧΩΡΟΣ","Π.1","Ύδρευση Πισίνας","αποκοπή",0,0,{"$error":"#NAME?"},{"$f":"G19*E19","v":{"$error":"#NAME?"}}]
["ΠΕΡΙΒΑΛΛΟΝ ΧΩΡΟΣ","Π.2","Αποχέτευση Πισίνας","αποκοπή",0,0,{"$error":"#NAME?"},{"$f":"G20*E20","v":{"$error":"#NAME?"}}]
["ΠΕΡΙΒΑΛΛΟΝ ΧΩΡΟΣ","Π.3","Ηλεκτρολογικά Πισίνας","αποκοπή",0,0,{"$error":"#NAME?"},{"$f":"G21*E21","v":{"$error":"#NAME?"}}]

{"sheet":"ΟΜΑΔΟΠΟΙΗΣΗ ΑΥΘΑΙΡΕΣΙΩΝ","index":13,"n_rows":35,"n_cols":2,"rows_kept":35,"cut":false,"hidden":false,"merged":[]}
[null,"ΠΕΡΙΓΡΑΦΗ  ΑΥΘΑΙΡΕΣΙΩΝ"]
[]
[null," "]
[1,"Κ1  .  "]
[2,"Κ2  ."]
[3,"Κ3  ."]
[4,"Κ4  ."]
[5,"Κ5  ."]
[6,"Κ6  ."]
[7,"Κ7  ."]
[8,"Κ8  ."]
[9,"Κ9  ."]
[10,"Κ10."]
[11]
[12]
[13]
[14]
[15]
[16]
[17]
[18]
[19]
[20]
[21]
[22]
[23]
[24]
[25]
[26]
[27]
[28]
[29]
[30]
[31]
[32]

{"sheet":"ΑΝΑΛΥΤΙΚΟΣ","index":14,"n_rows":19,"n_cols":11,"rows_kept":19,"cut":false,"hidden":false,"merged":[[4,3,4,6],[5,3,5,6],[6,3,6,6],[7,3,7,6],[8,3,8,6]]}
[null,"α/α","Είδος Εργασίας","Μονάδα Μέτρησης","Τιμή Μονάδος  €   ","ΚΑΤΩ ΥΠΟΛΟΓΙΣΜΟΣ ΠΟΣΟΤΗΤΑΣ- ΕΔΏ ΤΙΤΛΟΣ ΕΡΓΑΣΙΑΣ <ΕΠΙΛΟΓΗ >","ποσότητα","Σύνολο    €"]
[]
[]
[null,null,null,null,null,null,"ΣΥΝΟΛΟ",{"$f":"SUM(H2:H3)","v":0},{"$f":"H4","v":0}]
[null,"ΕΡΓΟ ",null,"ΔΗΛΩΣΗ ν4178/13",null,null,null,"ΑΡ.ΣΕΛ/ΔΩΝ","?"]
[null,"ΘΕΣΗ",null," ",null,null,null," "," "]
[null,"ΙΔΙΟΚΤΗΤΗΣ",null," ",null,null,null,"ΣΥΝΟΛΟ ΑΝΑΛΥΤΙΚΟΥ",{"$f":"SUM(I12:I194)","v":0}]
[null,"ΗΜΕΡΟΜΗΝΙΑ",null," ",null,null,null,"ΠΑΡΑΒΑΣΕΙΣ=",{"$f":"1+(INT(I7/15000))","v":1}]
[null,"Α/Α ΔΗΛΩΣΗΣ",null," ",null,null,null," "]
[null,"ΠΑΡΑΡΤΗΜΑ Β (ΑΝΑΛΥΤΙΚΟΙ ΠΡΟΥΠΟΛΟΓΙΣΜΟΙ Ν4178/2013)",null,null,null,null,null," "," "]
[null,"α/α","Είδος Εργασίας","Μονάδα Μέτρησης","Τιμή Μονάδος  €   ","ΚΑΤΩ ΥΠΟΛΟΓΙΣΜΟΣ ΠΟΣΟΤΗΤΑΣ- ΕΔΏ ΤΙΤΛΟΣ ΕΡΓΑΣΙΑΣ <ΕΠΙΛΟΓΗ >","ποσότητα","Σύνολο    €"]
[]
[null,null,null,null,null," "]
[]
[]
[null,null,null,null,null,null,"ΣΥΝΟΛΟ",{"$f":"SUM(H12:H15)","v":0},{"$f":"H16","v":0}]
[]
[]
[null,null,null,null,null,null,null,null,null,null," "]

{"sheet":"οδηγιες","index":15,"n_rows":1,"n_cols":1,"rows_kept":1,"cut":false,"hidden":false,"merged":[]}
["Το πρόγραμμα υπολογιζει τον αριθμο των λοιπων παραβασεων βασει αναλυτικου. Αρχικα και αφου κάνουμε ενεργοποίηση μακροεντολων στην καρτελα ΟΜΑΔΟΠΟΙΗΣΗ ΑΥΘΑΙΡΕΣΙΩΝ γραφουμε τις εργασιες σαν υποσυνολα πχ :1. <ΑΛΛΑΓΗ ΔΙΑΡΥΘΜΙΣΗΣ ΧΩΡΩΝ ΚΑΤΟΙΚΙΑΣ> 2.< ΚΛΕΙΣΙΜΟ Η/Χ> κλπ. Στη συνεχεια μεταβαίνουμε στην καρτέλα ΑΝΑΛΥΤΙΚΟΣ και στο κελί  F11 επιλεγουμε την πρωτη  εργασία πχ  1. <ΑΛΛΑΓΗ ΔΙΑΡΥΘΜΙΣΗΣ ΧΩΡΩΝ ΚΑΤΟΙΚΙΑΣ>.Στις γραμμές  12,13,14,15 τοποθετώ με copy-paste από τις καρτελες πχ ΚΑΘΡ (=ΚΑΘΑΙΡΕΣΕΙΣ) το αρθρο που επιλεγω και με αυτό τον τροπο συνθετω την εγασια.Για καθε αρθρο στα κελια  F   της εργασιας γραφω τον υπολογισμο ποσοτητας πχ  2*(15,2-1)/2-3,2   και παταω  ENTER .Αν χρειαστει προσθετω και άλλη γραμμη αναμεσα από την 12 εως την 15 προσέχοντας στην κόκκινη γραμμή που βρίσκει το σύνολο να αθροίζει τα σωστά κελια λογω εισαγωγής γραμμής .Ακόλουθα και για την επόμενη εργασία κάνω copy-paste τις 1,2,3,4 γραμμές κάτω από τη γραμμή  16.Οταν τελειώσει η περιγραφή όλων των εργασιών το πρόγραμμα υπολογίζει το σύνολο του αναλυτικού ,κάνουμε μορφοποίηση σην καρτέλα ΑΝΑΛΥΤΙΚΟΣ ετσι ώστε να γίνει εκτύπωση σε Α4 και εκτυπώνουμε σε χαρτί η pdf."]